bitfinex-derivatives/quotes_ETHF0:USTF0_20250830
["timestamp","ask_amount","ask_price","bid_price","bid_amount"]
[1756524793334,1.1836,4370.8,4370.7,0.7545]
[1756524793627,0.6978,4370.7,4370.5,32.937]
[1756524793830,1.1836,4370.7,4370.6,0.262]
[1756524794035,1.1836,4370.7,4370.6,1.491]
[1756524794230,0.6978,4370.6,4370.5,32.937]
[1756524794431,1.1836,4370.6,4370.1,0.18156071]
[1756524794632,1.1836,4370.6,4370.2,0.262]
[1756524794933,1.1836,4370.6,4370.0,0.262]
[1756524795135,1.1836,4370.1,4370.0,1.491]
[1756524795739,1.1836,4370.1,4370.0,1.229]
[1756524795930,1.1836,4370.1,4369.2,0.7365]
[1756524796238,1.1836,4370.1,4369.3,0.262]
[1756524796729,0.6978,4370.0,4369.2,0.7365]
[1756524796930,0.6978,4370.0,4369.1,36.1518]
[1756524797125,0.6978,4370.0,4369.2,0.262]
[1756524797333,0.6978,4370.0,4369.3,0.7365]
[1756524797635,0.4858,4369.4,4369.3,1.229]
[1756524797936,1.1836,4369.4,4369.3,1.491]
[1756524798338,1.1836,4369.4,4369.3,1.229]
[1756524798540,0.4858,4369.4,4369.3,0.262]
[1756524798736,1.1836,4369.2,4369.1,36.8883]
[1756524798939,1.1836,4369.2,4369.1,33.6805]
[1756524799238,1.1836,4369.2,4369.1,33.9425]
[1756524801042,1.1836,4369.2,4369.1,33.6805]
[1756524801339,1.1836,4369.2,4369.1,33.206]
[1756524801541,1.1836,4369.2,4368.5,1.229]
[1756524801542,1.1836,4368.6,4368.5,1.229]
[1756524801734,0.4858,4368.1,4368.0,1.229]
[1756524802039,0.4858,4368.1,4368.0,1.491]
[1756524802240,1.1836,4368.1,4368.0,1.229]
[1756524802541,1.1836,4368.1,4367.6,32.954]
[1756524802542,1.1836,4367.8,4367.7,1.229]
[1756524803131,1.1836,4367.8,4367.7,0.262]
[1756524803336,0.6978,4367.8,4367.7,0.261]
[1756524803534,1.1836,4367.8,4367.7,0.261]
[1756524803834,0.4858,4367.8,4367.5,0.261]
[1756524804037,3.2078,4367.9,4366.8,0.7365]
[1756524804233,0.6978,4367.5,4366.9,0.261]
[1756524804435,0.6978,4367.5,4366.3,0.41218]
[1756524804436,0.6978,4366.9,4366.3,0.7365]
[1756524804639,0.4858,4366.6,4366.5,0.4925]
[1756524804841,1.1836,4366.6,4366.5,1.229]
[1756524805547,0.6978,4367.2,4366.6,0.7365]
[1756524805744,0.6978,4367.2,4366.5,0.261]
[1756524805745,1.1836,4367.2,4367.1,0.4925]
[1756524805949,3.9056,4367.9,4367.8,0.4925]
[1756524806247,3.6936,4367.9,4367.4,0.261]
[1756524806449,0.4858,4367.1,4367.0,0.7535]
[1756524806652,0.6978,4367.8,4367.0,0.7535]
[1756524806653,3.9056,4367.8,4367.1,0.7365]
[1756524806854,0.6978,4367.7,4367.2,0.261]
[1756524807051,1.1836,4367.7,4367.6,1.229]
[1756524807645,3.2078,4367.8,4367.7,0.7365]
[1756524807846,4.3914,4367.8,4367.7,1.229]
[1756524808049,3.6936,4367.8,4366.6,0.41215]
[1756524808250,0.6978,4367.7,4366.8,0.7365]
[1756524808553,0.6978,4367.7,4366.9,0.24]
[1756524808750,0.4858,4367.1,4367.0,0.7535]
[1756524808950,0.4858,4367.1,4367.0,1.49]
[1756524809354,3.2078,4367.8,4367.1,0.7365]
[1756524809355,3.9056,4367.8,4367.1,0.7365]
[1756524809850,4.3914,4367.2,4366.6,0.7365]
[1756524810055,0.4858,4366.7,4366.6,0.9975]
[1756524810251,1.1836,4366.7,4366.6,0.7365]
[1756524811049,1.1836,4366.6,4366.5,0.261]
[1756524811251,1.1836,4366.6,4366.2,3.9443]
[1756524811252,0.6978,4366.5,4366.4,0.4925]
[1756524811555,1.1836,4366.5,4366.4,1.49]
[1756524812349,1.1836,4366.5,4365.9,0.7365]
[1756524812652,1.1836,4366.5,4366.0,0.261]
[1756524812653,0.4858,4366.5,4366.0,0.261]
[1756524812858,1.1836,4366.1,4366.0,1.229]
[1756524813559,1.1836,4366.1,4366.0,0.4925]
[1756524813755,0.4858,4365.9,4365.8,1.49]
[1756524813952,1.1836,4365.9,4365.8,1.229]
[1756524814251,1.1836,4365.9,4365.1,3.2078]
[1756524814453,1.1836,4365.9,4365.2,0.7365]
[1756524814652,0.4858,4365.3,4365.2,1.229]
[1756524814855,1.1836,4365.3,4365.2,1.49]
[1756524815057,0.261,4366.6,4365.2,1.49]
[1756524815058,0.6978,4366.0,4365.3,0.7365]
[1756524815860,0.4858,4366.0,4365.9,1.229]
[1756524816658,3.2078,4366.1,4365.9,0.4925]
[1756524816852,3.2078,4366.1,4366.0,1.2082]
[1756524817061,3.2078,4366.7,4366.6,1.1546]
[1756524819561,4.376,4366.7,4366.1,0.6829]
[1756524819747,0.4641,4366.2,4366.1,0.9439]
[1756524819950,1.1682,4366.2,4366.1,0.6829]
[1756524820258,1.1682,4366.2,4366.1,1.1546]
[1756524821163,1.1682,4365.9,4365.8,0.261]
[1756524821347,0.4641,4365.9,4365.5,0.261]
[1756524821656,0.7041,4366.4,4366.1,1.1546]
[1756524821852,3.2078,4366.7,4366.6,1.1546]
[1756524822957,0.7041,4366.6,4366.5,0.26]
[1756524823258,1.1682,4366.6,4366.5,0.26]
[1756524823454,1.1682,4366.6,4366.5,1.1546]
[1756524825849,3.2078,4366.7,4366.6,1.1546]
[1756524826053,3.2078,4366.7,4366.6,1.56676]
[1756524827056,3.2078,4366.7,4366.6,1.1546]
[1756524827361,3.2078,4366.7,4366.6,1.56676]
[1756524828554,3.2078,4366.7,4366.6,1.1546]
[1756524828754,0.1144,4366.9,4366.6,0.26]
[1756524828755,0.4641,4366.8,4366.6,0.26]
[1756524828953,0.7041,4366.6,4366.4,0.6829]
[1756524829157,1.1682,4366.5,4366.4,1.4146]
[1756524829357,1.1682,4366.5,4366.4,1.1546]
[1756524829552,1.1682,4366.5,4365.9,0.6829]
[1756524829756,0.4641,4366.2,4366.1,1.1546]
[1756524830357,1.1682,4366.2,4366.1,1.4146]
[1756524830965,1.1682,4366.2,4366.1,1.1546]
[1756524831159,3.6719,4366.5,4366.4,0.4717]
[1756524831463,1.1682,4366.5,4366.4,1.1546]
[1756524831661,1.1682,4366.5,4365.3,3.2078]
[1756524831662,5.1682,4366.5,4365.6,0.6829]
[1756524831958,1.1682,4365.7,4365.6,0.26]
[1756524832159,0.4641,4365.5,4365.4,1.1546]
[1756524832458,1.1682,4365.8,4365.7,1.1546]
[1756524832662,0.7041,4365.7,4365.5,0.26]
[1756524832862,3.2078,4366.0,4365.3,3.8907]
[1756524832863,1.1682,4365.4,4365.3,3.8907]
[1756524833061,4.376,4365.4,4365.3,1.4146]
[1756524833462,4.376,4365.4,4365.3,1.1546]
[1756524833661,3.6719,4365.4,4365.3,1.1546]
[1756524833857,3.2078,4366.0,4365.9,1.1546]
[1756524834063,3.2078,4366.0,4365.9,1.4146]
[1756524834258,3.2078,4366.0,4365.9,1.82682]
[1756524835152,3.2078,4366.5,4366.4,0.4717]
[1756524835356,3.2078,4366.5,4366.4,1.1546]
[1756524835554,1.1682,4366.5,4366.2,0.26]
[1756524835757,1.1682,4366.3,4366.2,0.26]
[1756524835959,1.1682,4366.3,4365.9,0.6829]
[1756524835960,1.1682,4366.3,4366.1,0.26]
[1756524836158,0.4641,4366.3,4365.9,0.26]
[1756524836364,1.1682,4366.0,4365.4,0.6829]
[1756524836554,0.7041,4365.6,4365.0,36.1658]
[1756524836760,1.1682,4365.2,4365.1,0.26]
[1756524837262,1.1682,4365.2,4365.1,0.9429]
[1756524837559,0.7041,4365.7,4365.1,1.4146]
[1756524840063,0.7041,4365.7,4365.6,0.4717]
[1756524840267,1.1682,4365.7,4365.6,1.1546]
[1756524840969,1.1682,4365.2,4365.1,0.6829]
[1756524841268,1.1682,4365.2,4365.1,0.9419]
[1756524842167,1.1682,4365.2,4365.1,1.4136]
[1756524842965,0.4641,4364.6,4364.5,1.1546]
[1756524843162,1.1682,4364.6,4364.5,1.1546]
[1756524843562,0.7041,4365.0,4364.5,0.7307]
[1756524843766,0.7041,4365.2,4364.6,0.9419]
[1756524844064,1.1682,4364.7,4364.6,1.4136]
[1756524844667,0.7041,4365.2,4364.6,1.4136]
[1756524845260,3.4668,4365.3,4365.2,1.1546]
[1756524845261,3.2078,4365.3,4365.2,1.1546]
[1756524845565,4.376,4365.3,4365.0,0.259]
[1756524845870,3.2078,4365.3,4365.2,0.6829]
[1756524846068,3.2078,4365.3,4365.2,1.1546]
[1756524846268,0.1145,4365.4,4365.3,1.1546]
[1756524847775,3.2078,4365.9,4365.8,1.61933]
[1756524847965,3.2078,4365.9,4365.8,1.87833]
[1756524848168,0.7332,4366.8,4365.9,0.7112]
[1756524848664,1.2325,4366.8,4366.7,0.4959]
[1756524848865,0.4993,4366.8,4366.7,1.2071]
[1756524849160,1.2325,4366.8,4366.7,1.2071]
[1756524849361,0.7332,4366.7,4366.4,0.7112]
[1756524849566,0.4993,4366.7,4366.6,1.2071]
[1756524849771,1.2325,4366.7,4366.1,0.7112]
[1756524849974,3.2078,4366.2,4365.6,0.7112]
[1756524850276,1.2325,4366.6,4366.5,1.2071]
[1756524850667,0.4993,4366.6,4366.5,1.2071]
[1756524851172,3.2078,4366.8,4366.7,1.2071]
[1756524851368,0.8472,4367.4,4366.8,0.7112]
[1756524851571,1.2325,4366.9,4366.8,1.2071]
[1756524852072,0.4993,4366.9,4366.8,1.2071]
[1756524852275,0.7332,4367.3,4366.9,0.7112]
[1756524852469,0.114,4367.4,4366.4,0.41217]
[1756524852671,0.7332,4367.3,4366.5,0.7112]
[1756524852873,4.4403,4366.9,4366.8,0.4959]
[1756524853170,4.4403,4366.9,4366.5,0.259]
[1756524853377,3.2078,4366.9,4366.5,0.259]
[1756524853586,1.2325,4366.8,4366.7,0.4959]
[1756524854563,1.2325,4366.8,4366.0,0.41221]
[1756524854763,4.4403,4366.2,4366.1,0.7539]
[1756524854967,4.4403,4366.2,4365.8,0.7112]
[1756524855172,4.4403,4366.2,4365.5,1.2071]
[1756524855173,1.2325,4365.6,4365.5,1.2071]
[1756524855370,0.7332,4366.1,4365.5,0.7539]
[1756524855674,0.4993,4366.3,4366.2,1.2071]
[1756524855875,1.2325,4365.7,4365.6,0.4959]
[1756524856068,1.2325,4365.7,4365.2,37.32228]
[1756524856378,1.2325,4365.3,4365.2,33.7022]
[1756524856566,1.2325,4365.3,4365.2,32.991]
[1756524856870,0.7332,4364.8,4364.6,4.8067692]
[1756524857071,0.4993,4364.7,4364.5,1.5989692]
[1756524857378,3.2078,4365.0,4364.5,0.4959]
[1756524857679,3.2078,4365.0,4364.9,1.2071]
[1756524858176,3.2078,4365.0,4364.9,1.4651]
[1756524858979,0.4993,4365.0,4364.9,1.4651]
[1756524859277,1.2325,4365.0,4364.9,0.258]
[1756524859578,1.2325,4365.0,4364.9,1.2071]
[1756524860076,1.2325,4364.5,4364.4,0.7112]
[1756524860276,1.2325,4364.5,4364.4,0.258]
[1756524860475,1.2325,4364.2,4364.1,1.31250426]
[1756524860674,1.2325,4364.2,4364.1,1.57050426]
[1756524861677,1.2325,4364.2,4364.1,1.31250426]
[1756524862076,1.2325,4364.2,4364.1,0.60130426]
[1756524862279,1.2325,4364.2,4364.1,0.36340426]
[1756524863081,1.2325,4364.2,4364.1,0.10540426]
[1756524864282,5.46164,4364.2,4364.1,0.10540426]
[1756524864674,5.2325,4364.2,4364.1,0.10540426]
[1756524864878,5.4905,4364.2,4364.1,0.10540426]
[1756524865875,5.4905,4364.2,4362.8,3.62031]
[1756524866179,0.4993,4363.0,4362.9,0.7539]
[1756524866372,0.4993,4363.0,4362.9,1.4651]
[1756524866979,1.2325,4363.3,4363.2,0.4959]
[1756524867273,1.2325,4363.3,4363.2,1.2071]
[1756524868180,3.7071,4363.8,4363.7,1.61953]
[1756524868379,0.4993,4363.9,4363.8,1.2071]
[1756524868588,1.2325,4363.9,4363.8,1.2071]
[1756524869487,0.4993,4363.9,4363.8,1.2071]
[1756524869684,0.7332,4364.3,4363.9,0.7112]
[1756524869987,1.2325,4364.3,4364.2,0.4959]
[1756524870790,1.2325,4364.3,4364.2,1.2071]
[1756524871589,0.4993,4363.2,4363.1,1.2071]
[1756524871791,0.4993,4363.2,4362.8,3.2078]
[1756524871792,1.2325,4363.5,4363.4,0.4959]
[1756524871983,1.2325,4363.5,4363.4,1.2071]
[1756524872286,3.7071,4363.9,4363.8,0.4959]
[1756524872489,3.2078,4363.9,4363.8,1.2071]
[1756524872685,4.4403,4363.9,4363.8,0.4959]
[1756524872891,4.4403,4363.9,4363.8,1.2071]
[1756524873090,3.7071,4363.9,4363.8,1.2071]
[1756524873985,0.4993,4364.3,4364.2,1.2071]
[1756524874192,3.2078,4364.6,4364.5,1.2071]
[1756524874193,3.7071,4364.6,4364.5,1.2071]
[1756524874391,4.4403,4364.6,4364.5,1.2071]
[1756524874581,1.2325,4364.1,4364.0,0.4959]
[1756524874784,1.2325,4364.1,4363.3,3.2078]
[1756524874785,0.7332,4364.5,4363.9,0.9682]
[1756524875088,3.2078,4364.6,4364.5,1.2071]
[1756524875089,4.4403,4364.6,4364.5,1.2071]
[1756524875289,3.2078,4364.6,4364.5,1.2071]
[1756524875783,4.4403,4364.6,4364.5,1.2071]
[1756524875988,3.2078,4364.6,4364.5,1.2071]
[1756524876384,0.4993,4364.3,4364.2,0.7112]
[1756524876694,1.2325,4363.5,4363.1,0.7112]
[1756524876988,1.1458,4363.2,4363.1,0.7112]
[1756524877191,1.1458,4363.2,4363.1,1.1709]
[1756524878194,3.8789,4364.4,4363.8,1.11722]
[1756524878598,4.3536,4363.9,4363.4,0.257]
[1756524878892,0.4747,4363.6,4363.5,0.7048]
[1756524879093,1.1458,4363.6,4363.5,1.1709]
[1756524880096,1.1458,4363.6,4363.0,3.9126]
[1756524880295,1.1458,4363.2,4363.1,0.257]
[1756524880593,0.6711,4363.0,4362.5,3.2078]
[1756524880794,0.4747,4362.8,4362.7,0.257]
[1756524880992,1.1458,4362.8,4362.7,0.257]
[1756524881400,0.4747,4362.6,4362.5,3.4648]
[1756524881587,1.1458,4362.6,4362.5,3.4648]
[1756524881992,1.1458,4362.6,4362.5,4.3787]
[1756524882184,1.1458,4362.6,4362.5,4.6357]
[1756524882589,1.1458,4362.6,4362.5,1.1709]
[1756524882795,1.1458,4362.6,4362.5,1.4279]
[1756524883196,1.1458,4362.6,4362.5,1.1709]
[1756524884793,1.1458,4362.5,4362.0,0.7048]
[1756524884995,1.1458,4362.5,4361.8,3.2078]
[1756524884996,1.1458,4361.9,4361.8,3.9309]
[1756524885298,0.6711,4362.4,4361.8,4.6357]
[1756524886398,0.6711,4362.4,4361.8,4.3787]
[1756524886693,3.4648,4362.8,4361.7,0.257]
[1756524886694,0.4747,4361.9,4361.7,0.257]
[1756524886900,1.1458,4361.8,4361.7,0.257]
[1756524887197,0.4747,4361.5,4361.4,0.7048]
[1756524887393,1.1458,4361.5,4361.4,0.7048]
[1756524887593,0.4747,4361.5,4361.2,0.257]
[1756524887797,1.1458,4361.4,4361.3,1.1709]
[1756524888193,0.4747,4361.4,4361.3,1.1709]
[1756524888394,3.2078,4361.6,4361.4,0.7048]
[1756524888593,3.2078,4361.6,4361.5,0.4661]
[1756524888794,3.2078,4361.6,4361.5,1.1709]
[1756524889000,3.6825,4361.6,4361.5,1.1709]
[1756524889192,3.6825,4361.6,4361.3,0.257]
[1756524889393,1.1458,4361.4,4361.3,0.257]
[1756524889896,1.1458,4361.1,4361.0,1.1709]
[1756524890092,3.8789,4361.6,4361.1,0.7048]
[1756524890492,3.2078,4361.6,4361.0,0.256]
[1756524891000,0.6711,4361.5,4361.0,0.9608]
[1756524891198,1.1458,4361.1,4361.0,0.4661]
[1756524891400,1.1458,4361.1,4361.0,0.7221]
[1756524891789,0.6711,4361.5,4361.0,1.4269]
[1756524891990,0.6711,4361.5,4361.1,0.7048]
[1756524892194,0.6711,4361.8,4361.1,0.7048]
[1756524892395,3.2078,4361.6,4361.0,0.256]
[1756524892591,4.3536,4361.6,4361.5,1.1709]
[1756524893496,0.6711,4362.2,4361.6,0.7048]
[1756524894199,3.2078,4362.1,4361.5,0.7048]
[1756524894595,3.8789,4362.6,4362.0,0.4661]
[1756524894796,4.3536,4362.6,4362.5,1.1709]
[1756524895601,3.6825,4362.6,4362.5,1.1709]
[1756524896197,4.3536,4362.6,4362.5,0.4661]
[1756524896394,0.4747,4362.2,4362.1,0.7048]
[1756524896703,0.4747,4362.2,4362.1,1.83948]
[1756524896998,1.1458,4362.5,4362.4,0.4661]
[1756524897302,1.1458,4361.8,4361.7,1.58352]
[1756524897501,1.1458,4361.8,4361.7,1.83952]
[1756524897707,1.1458,4361.8,4361.7,1.4269]
[1756524898000,0.4747,4361.8,4361.7,1.4269]
[1756524898610,3.2078,4362.1,4362.0,1.58349]
[1756524899305,4.3536,4362.1,4362.0,1.1709]
[1756524899494,0.6711,4362.0,4361.7,1.11741]
[1756524899694,1.1458,4361.9,4361.8,0.256]
[1756524899904,1.1458,4361.9,4361.8,1.4269]
[1756524900310,0.4747,4361.9,4361.8,1.1709]
[1756524900498,0.6711,4362.2,4362.0,0.41259]
[1756524900698,0.6711,4362.8,4362.6,0.7048]
[1756524900901,0.6711,4362.7,4362.4,0.256]
[1756524901102,0.6711,4362.7,4361.6,0.7048]
[1756524901103,0.6711,4362.4,4361.9,0.256]
[1756524901301,0.4747,4362.0,4361.9,0.256]
[1756524901599,1.1458,4362.0,4361.9,0.256]
[1756524902904,3.6825,4362.0,4361.1,33.017]
[1756524903202,1.1458,4361.1,4361.0,3.9126]
[1756524903404,1.1458,4361.1,4361.0,4.1686]
[1756524904303,1.1458,4361.1,4361.0,3.4638]
[1756524904706,1.1458,4361.1,4361.0,4.6347]
[1756524905009,0.4747,4361.1,4361.0,4.6347]
[1756524905205,3.2078,4362.0,4361.8,1.1709]
[1756524905510,3.2078,4362.0,4361.9,1.4269]
[1756524907611,3.2078,4362.0,4361.9,1.1709]
[1756524907908,3.2078,4362.0,4361.9,1.4269]
[1756524909104,3.6772,4362.0,4361.9,1.4269]
[1756524909312,1.1795,4362.0,4361.9,0.7221]
[1756524910010,1.1795,4362.0,4361.9,1.4227]
[1756524910808,3.2078,4362.3,4361.4,2.0116092]
[1756524910809,0.4694,4361.7,4361.6,1.1556]
[1756524911006,1.1795,4361.7,4361.6,1.82323]
[1756524911202,0.7101,4362.2,4361.6,1.82323]
[1756524912000,0.7101,4362.2,4361.7,0.7006]
[1756524912205,1.1795,4362.2,4362.1,1.1556]
[1756524912601,1.1795,4362.2,4361.6,0.9556]
[1756524912811,0.4694,4361.7,4361.6,1.4106]
[1756524913109,1.1795,4361.7,4361.6,1.4106]
[1756524913310,1.1795,4361.7,4361.6,3.0095692]
[1756524915610,1.1795,4361.7,4361.6,2.7545692]
[1756524915806,1.1795,4361.7,4361.6,3.0095692]
[1756524916512,1.1795,4361.7,4361.6,1.1556]
[1756524916703,1.1795,4361.7,4361.6,3.0219169]
[1756524916907,1.1795,4361.7,4361.6,1.4106]
[1756524917808,1.1795,4361.7,4361.6,1.1556]
[1756524918005,1.1795,4361.7,4361.6,1.4106]
[1756524920403,1.1795,4361.7,4361.6,3.0224808]
[1756524921214,1.1795,4361.7,4361.6,1.4106]
[1756524921514,1.1795,4361.7,4361.6,0.455]
[1756524921710,0.4694,4361.5,4361.4,0.255]
[1756524921918,1.1795,4361.5,4361.4,0.255]
[1756524922215,1.1795,4361.5,4361.4,1.4106]
[1756524922411,0.7101,4361.8,4361.5,0.7006]
[1756524922611,1.1795,4361.8,4361.7,1.1556]
[1756524922812,0.4694,4361.8,4361.7,1.4106]
[1756524923013,0.1141,4361.9,4361.8,0.7006]
[1756524923214,0.1141,4361.9,4361.8,1.1556]
[1756524925719,0.4694,4361.7,4361.4,1.61216101]
[1756524926018,0.4694,4361.7,4361.1,2.05883414]
[1756524926019,1.1795,4361.3,4361.2,1.1556]
[1756524926921,1.1795,4361.3,4361.2,0.709]
[1756524927121,1.1795,4361.3,4361.0,1.61216101]
[1756524927320,1.1795,4361.2,4361.1,0.709]
[1756524927515,1.1795,4361.2,4361.1,1.4096]
[1756524928725,1.1795,4361.2,4361.1,0.709]
[1756524929126,1.1795,4361.2,4360.9,1.61216101]
[1756524929127,0.4694,4361.0,4360.9,1.61216101]
[1756524929327,1.1795,4360.5,4360.4,1.4096]
[1756524929928,4.3873,4360.5,4360.4,1.4096]
[1756524930626,4.3873,4360.5,4360.4,0.455]
[1756524930826,4.3873,4360.5,4360.0,2.31276101]
[1756524931123,1.1795,4360.2,4360.1,1.1556]
[1756524931432,1.1795,4360.2,4360.1,1.4096]
[1756524932329,1.1795,4360.2,4360.1,1.1556]
[1756524932524,1.1795,4360.2,4360.1,1.4096]
[1756524932929,1.1795,4360.2,4360.1,1.1556]
[1756524933131,1.1795,4360.2,4360.1,1.4096]
[1756524933829,3.2078,4360.5,4360.4,1.1556]
[1756524934029,3.2078,4360.5,4360.4,1.4096]
[1756524934927,1.1795,4361.0,4360.9,0.455]
[1756524935130,1.1795,4361.0,4360.9,1.4096]
[1756524935827,1.1795,4361.0,4360.4,0.41274]
[1756524936129,4.3873,4360.7,4360.6,1.1556]
[1756524936332,4.3873,4360.7,4360.6,1.4096]
[1756524937730,3.2078,4361.6,4360.6,4.93832]
[1756524937929,1.133,4361.7,4361.6,1.1009]
[1756524938135,0.6989,4361.6,4361.5,0.254]
[1756524938328,1.133,4361.6,4361.3,0.254]
[1756524938529,1.133,4361.6,4361.0,0.41268]
[1756524938726,0.4341,4361.3,4361.2,1.51357]
[1756524939036,1.133,4361.3,4361.2,1.76757]
[1756524939535,1.133,4361.3,4361.2,0.254]
[1756524940033,1.133,4361.3,4361.0,0.254]
[1756524940229,0.4341,4360.6,4360.5,0.87162]
[1756524940435,1.133,4360.6,4360.5,1.12562]
[1756524940726,4.3408,4360.6,4360.5,0.4589]
[1756524940930,4.3408,4360.6,4360.5,0.7129]
[1756524941535,1.133,4360.6,4360.5,1.3549]
[1756524943730,1.133,4360.6,4360.5,0.4589]
[1756524943934,1.133,4360.6,4360.5,0.7129]
[1756524944836,3.2078,4360.7,4360.4,0.254]
[1756524945025,1.133,4360.5,4360.4,0.254]
[1756524946231,0.6989,4360.4,4359.9,3.8498]
[1756524946433,0.4341,4359.8,4359.7,1.1009]
[1756524946637,1.133,4359.8,4359.7,1.3539]
[1756524947129,1.133,4359.8,4359.7,0.7119]
[1756524947831,1.133,4359.5,4359.4,1.1009]
[1756524948038,1.133,4359.1,4359.0,0.4589]
[1756524948334,1.133,4359.1,4359.0,0.7119]
[1756524948539,1.133,4359.1,4359.0,1.3539]
[1756524949429,1.133,4359.1,4359.0,1.1009]
[1756524949831,1.133,4359.1,4359.0,1.3539]
[1756524950233,3.2078,4359.7,4359.0,1.12477]
[1756524950534,0.4341,4359.6,4359.5,1.1009]
[1756524950738,0.6989,4360.0,4359.5,0.7119]
[1756524950934,1.133,4360.1,4358.9,1.61216101]
[1756524951127,1.133,4359.6,4359.5,1.1009]
[1756524952134,1.133,4359.6,4359.5,1.3539]
[1756524952538,1.133,4359.6,4359.5,0.4589]
[1756524952738,3.2078,4359.7,4358.8,1.61216101]
[1756524952739,3.6419,4359.7,4359.6,1.1009]
[1756524953038,3.2078,4359.7,4359.6,1.1009]
[1756524953437,3.9067,4360.2,4359.6,1.1009]
[1756524955030,3.9067,4360.2,4359.6,1.51372]
[1756524955435,3.2078,4360.2,4359.6,0.87172]
[1756524955742,1.133,4359.8,4359.7,1.1009]
[1756524955935,0.4341,4359.8,4359.7,1.1009]
[1756524956130,1.133,4359.8,4359.7,1.1009]
[1756524957837,3.2078,4360.2,4359.7,1.1009]
[1756524958037,3.6419,4360.7,4360.6,1.1009]
[1756524959144,0.1142,4360.8,4360.7,0.642]
[1756524959339,0.1142,4360.8,4360.7,1.1009]
[1756524962936,0.1142,4360.8,4360.7,5.92086101]
[1756524963130,0.1142,4360.8,4360.7,4.3087]
[1756524963336,0.1142,4360.8,4360.7,4.5617]
[1756524963541,0.1142,4360.8,4360.7,10.40318101]
[1756524963936,0.1142,4360.8,4360.7,8.79102]
[1756524964335,1.133,4361.9,4361.8,1.51351]
[1756524964540,1.133,4361.9,4361.8,1.76651]
[1756524965340,1.133,4361.9,4361.8,1.3539]
[1756524965534,1.133,4361.9,4361.8,1.1009]
[1756524965733,1.133,4361.9,4361.8,1.3539]
[1756524965937,1.133,4361.9,4361.2,3.2078]
[1756524966133,1.133,4361.3,4361.2,1.1009]
[1756524966339,1.133,4361.3,4361.2,1.3539]
[1756524967745,1.133,4361.3,4361.2,1.76656]
[1756524968748,0.4341,4361.3,4361.2,1.51356]
[1756524969048,1.1079,4361.3,4361.2,1.3716]
[1756524972452,1.1079,4361.3,4361.2,0.252]
[1756524974244,1.1079,4360.8,4360.7,1.53231]
[1756524974450,3.2078,4361.6,4360.7,1.13301]
[1756524974643,0.6446,4361.5,4360.8,0.6513]
[1756524975042,0.4633,4361.0,4360.9,0.7203]
[1756524975249,1.1079,4361.0,4360.9,1.3716]
[1756524977951,1.1079,4361.0,4360.9,1.78429]
[1756524978251,0.4633,4361.0,4360.9,1.78429]
[1756524979150,0.6446,4361.3,4361.0,0.6513]
[1756524979351,0.6446,4361.3,4360.9,0.66469]
[1756524979352,1.1079,4361.3,4361.2,1.1196]
[1756524980047,0.4633,4361.3,4361.2,1.1196]
[1756524980254,3.2078,4361.6,4361.5,0.4683]
[1756524980550,3.2078,4361.6,4361.5,1.3716]
[1756524981050,3.2078,4361.6,4361.5,1.78424]
[1756524981951,3.2078,4362.3,4362.2,0.41257]
[1756524982159,33.032,4364.2,4362.2,0.41257]
[1756524982160,0.6446,4362.8,4362.5,0.4683]
[1756524982348,0.4633,4362.7,4362.6,1.1196]
[1756524982654,1.1079,4362.7,4362.6,1.1196]
[1756524984250,0.6446,4363.4,4362.7,0.6513]
[1756524984455,0.4633,4363.0,4362.9,1.1196]
[1756524984755,1.1079,4363.0,4362.9,1.1196]
[1756524987955,1.1079,4363.0,4362.9,1.3716]
[1756524989251,4.3157,4363.0,4362.9,1.3706]
[1756524989548,0.6446,4364.0,4363.9,0.4683]
[1756524989749,1.1079,4364.0,4363.9,1.1196]
[1756524989949,0.4633,4364.0,4363.9,1.1196]
[1756524990152,3.6711,4364.6,4364.5,0.4683]
[1756524990357,4.3157,4364.6,4363.2,4.8153099]
[1756524990654,1.1079,4363.4,4363.3,1.3706]
[1756524991152,1.1079,4363.4,4363.3,0.4683]
[1756524991355,1.1079,4363.4,4362.9,0.6513]
[1756524991552,1.1079,4362.9,4362.8,33.019]
[1756524991857,1.1079,4362.9,4362.8,33.27]
[1756524992358,4.3157,4362.9,4362.8,33.9213]
[1756524993152,1.1079,4362.9,4362.8,33.9213]
[1756524993449,0.6446,4363.4,4362.8,33.27]
[1756524993660,1.1079,4363.4,4363.3,1.1196]
[1756524993857,0.4633,4363.4,4363.3,1.3706]
[1756524994052,3.2078,4364.4,4364.3,0.6513]
[1756524994256,3.2078,4365.0,4364.4,1.1196]
[1756524994454,3.6711,4365.0,4364.9,0.4683]
[1756524994652,4.3157,4365.0,4364.9,0.4683]
[1756524995858,0.4633,4364.6,4364.5,0.9023]
[1756524996059,1.1079,4364.6,4364.5,0.9023]
[1756524996260,1.1079,4364.6,4364.5,0.251]
[1756524996658,3.2078,4365.0,4364.5,0.251]
[1756524996858,0.6207,4364.9,4364.5,0.251]
[1756524997162,1.0639,4364.6,4364.5,1.3294]
[1756524998057,1.0639,4364.6,4364.5,0.4375]